{"text_format":"3","workbook":"xlsx","n_sheets":1,"sheets":["\"قائمة مخزون المعدات\""],"not_rendered":{"defined_names":5},"read":"whole","date_system":"1900"}

{"sheet":"\"قائمة مخزون المعدات\"","index":0,"n_rows":9,"n_cols":19,"rows_kept":9,"merged":[[0,1,0,5],[0,6,0,9],[0,10,0,12],[0,13,0,14],[2,1,2,6],[2,7,2,18]]}
[null,"\"قائمة مخزون المعدات\""]
[]
[null,"\"الحالة المادية\"",{"$nulls":5},"الحالة المالية"]
[null,"رقم الأصل أو الرقم التسلسلي","وصف العنصر (الصنع والطراز)","الموقع","الحالة","مورّد","سنوات الخدمة المتبقية ","القيمة الأولية","الدفعة الأولى","تاريخ الشراء أو التأجير","مدة القرض بالسنوات","سعر القرض","مبلغ السداد الشهري","تكاليف التشغيل الشهرية","إجمالي التكلفة الشهرية","القيمة المتوقعة في نهاية مدة القرض","الإهلاك السنوي بالقسط الثابت","الإهلاك الشهري بالقسط الثابت","القيمة الحالية"]
[null,123,"إنشاء نموذج","الفرع الرئيسي","جيد","المحلية",5,{"v":30000,"d":"30,000.00 ر.س.‏"},{"v":5000,"d":"5,000.00 ر.س.‏"},{"$f":"DATE(YEAR(TODAY())-2, 1,1)","v":"2016-01-01"},4,{"v":0.1,"d":"10.00%"},{"$f":"IFERROR(IF(AND(البيانات[[#This Row],[القيمة الأولية]]>0,البيانات[[#This Row],[القيمة الأولية]]<>البيانات[[#This Row],[الدفعة الأولى]]),-1*PMT(البيانات[[#This Row],[سعر القرض]]/12,البيانات[[#This Row],[مدة القرض بالسنوات]]*12,البيانات[[#This Row],[القيمة الأولية]]-البيانات[[#This Row],[الدفعة الأولى]]),0),0)","v":{"v":634.0645858686797,"d":"634.06 ر.س.‏"}},{"v":200,"d":"200.00 ر.س.‏"},{"$f":"IFERROR(البيانات[[#This Row],[تكاليف التشغيل الشهرية]]+البيانات[[#This Row],[مبلغ السداد الشهري]],\"\")","v":{"v":834.0645858686797,"d":"834.06 ر.س.‏"}},{"v":20000,"d":"20,000.00 ر.س.‏"},{"$f":"IFERROR(IF(البيانات[[#This Row],[القيمة الأولية]]>0,SLN(البيانات[[#This Row],[القيمة الأولية]],البيانات[[#This Row],[القيمة المتوقعة في نهاية مدة القرض]],البيانات[[#This Row],[سنوات الخدمة المتبقية ]]),0),0)","v":{"v":2000,"d":"2,000.00 ر.س.‏"}},{"$f":"IFERROR(البيانات[[#This Row],[الإهلاك السنوي بالقسط الثابت]]/12,0)","v":{"v":166.66666666666666,"d":"166.67 ر.س.‏"}},{"$f":"IFERROR(البيانات[[#This Row],[القيمة الأولية]]-(البيانات[[#This Row],[الإهلاك السنوي بالقسط الثابت]]*((TODAY()-البيانات[[#This Row],[تاريخ الشراء أو التأجير]])/365)),0)","v":{"v":25013.698630136987,"d":"25,013.70 ر.س.‏"}}]
[null,456,"إنشاء نموذج","الفرع الرئيسي","ممتاز","المحلية",3,{"v":5000,"d":"5,000.00 ر.س.‏"},{"v":5000,"d":"5,000.00 ر.س.‏"},{"$f":"DATE(YEAR(TODAY())-1, 1,1)","v":"2017-01-01"},null,null,{"$f":"IFERROR(IF(AND(البيانات[[#This Row],[القيمة الأولية]]>0,البيانات[[#This Row],[القيمة الأولية]]<>البيانات[[#This Row],[الدفعة الأولى]]),-1*PMT(البيانات[[#This Row],[سعر القرض]]/12,البيانات[[#This Row],[مدة القرض بالسنوات]]*12,البيانات[[#This Row],[القيمة الأولية]]-البيانات[[#This Row],[الدفعة الأولى]]),0),0)","v":{"v":0,"d":"0.00 ر.س.‏"}},{"v":20,"d":"20.00 ر.س.‏"},{"$f":"IFERROR(البيانات[[#This Row],[تكاليف التشغيل الشهرية]]+البيانات[[#This Row],[مبلغ السداد الشهري]],\"\")","v":{"v":20,"d":"20.00 ر.س.‏"}},null,{"$f":"IFERROR(IF(البيانات[[#This Row],[القيمة الأولية]]>0,SLN(البيانات[[#This Row],[القيمة الأولية]],البيانات[[#This Row],[القيمة المتوقعة في نهاية مدة القرض]],البيانات[[#This Row],[سنوات الخدمة المتبقية ]]),0),0)","v":{"v":1666.6666666666667,"d":"1,666.67 ر.س.‏"}},{"$f":"IFERROR(البيانات[[#This Row],[الإهلاك السنوي بالقسط الثابت]]/12,0)","v":{"v":138.88888888888889,"d":"138.89 ر.س.‏"}},{"$f":"IFERROR(البيانات[[#This Row],[القيمة الأولية]]-(البيانات[[#This Row],[الإهلاك السنوي بالقسط الثابت]]*((TODAY()-البيانات[[#This Row],[تاريخ الشراء أو التأجير]])/365)),0)","v":{"v":2515.981735159817,"d":"2,515.98 ر.س.‏"}}]
[null,789,"إنشاء نموذج","الساحل الشرقي","مقبول","المحلية",6,{"v":50000,"d":"50,000.00 ر.س.‏"},{"v":20000,"d":"20,000.00 ر.س.‏"},{"$f":"TODAY()","v":"2018-06-29"},5,{"v":0.05,"d":"5.00%"},{"$f":"IFERROR(IF(AND(البيانات[[#This Row],[القيمة الأولية]]>0,البيانات[[#This Row],[القيمة الأولية]]<>البيانات[[#This Row],[الدفعة الأولى]]),-1*PMT(البيانات[[#This Row],[سعر القرض]]/12,البيانات[[#This Row],[مدة القرض بالسنوات]]*12,البيانات[[#This Row],[القيمة الأولية]]-البيانات[[#This Row],[الدفعة الأولى]]),0),0)","v":{"v":566.137009320328,"d":"566.14 ر.س.‏"}},{"v":40,"d":"40.00 ر.س.‏"},{"$f":"IFERROR(البيانات[[#This Row],[تكاليف التشغيل الشهرية]]+البيانات[[#This Row],[مبلغ السداد الشهري]],\"\")","v":{"v":606.137009320328,"d":"606.14 ر.س.‏"}},{"v":1500,"d":"1,500.00 ر.س.‏"},{"$f":"IFERROR(IF(البيانات[[#This Row],[القيمة الأولية]]>0,SLN(البيانات[[#This Row],[القيمة الأولية]],البيانات[[#This Row],[القيمة المتوقعة في نهاية مدة القرض]],البيانات[[#This Row],[سنوات الخدمة المتبقية ]]),0),0)","v":{"v":8083.333333333333,"d":"8,083.33 ر.س.‏"}},{"$f":"IFERROR(البيانات[[#This Row],[الإهلاك السنوي بالقسط الثابت]]/12,0)","v":{"v":673.6111111111111,"d":"673.61 ر.س.‏"}},{"$f":"IFERROR(البيانات[[#This Row],[القيمة الأولية]]-(البيانات[[#This Row],[الإهلاك السنوي بالقسط الثابت]]*((TODAY()-البيانات[[#This Row],[تاريخ الشراء أو التأجير]])/365)),0)","v":{"v":50000,"d":"50,000.00 ر.س.‏"}}]
[{"$nulls":12},{"$f":"IFERROR(IF(AND(البيانات[[#This Row],[القيمة الأولية]]>0,البيانات[[#This Row],[القيمة الأولية]]<>البيانات[[#This Row],[الدفعة الأولى]]),-1*PMT(البيانات[[#This Row],[سعر القرض]]/12,البيانات[[#This Row],[مدة القرض بالسنوات]]*12,البيانات[[#This Row],[القيمة الأولية]]-البيانات[[#This Row],[الدفعة الأولى]]),0),0)","v":{"v":0,"d":"0.00 ر.س.‏"}},null,{"$f":"IFERROR(البيانات[[#This Row],[تكاليف التشغيل الشهرية]]+البيانات[[#This Row],[مبلغ السداد الشهري]],\"\")","v":{"v":0,"d":"0.00 ر.س.‏"}},null,{"$f":"IFERROR(IF(البيانات[[#This Row],[القيمة الأولية]]>0,SLN(البيانات[[#This Row],[القيمة الأولية]],البيانات[[#This Row],[القيمة المتوقعة في نهاية مدة القرض]],البيانات[[#This Row],[سنوات الخدمة المتبقية ]]),0),0)","v":{"v":0,"d":"0.00 ر.س.‏"}},{"$f":"IFERROR(البيانات[[#This Row],[الإهلاك السنوي بالقسط الثابت]]/12,0)","v":{"v":0,"d":"0.00 ر.س.‏"}},{"$f":"IFERROR(البيانات[[#This Row],[القيمة الأولية]]-(البيانات[[#This Row],[الإهلاك السنوي بالقسط الثابت]]*((TODAY()-البيانات[[#This Row],[تاريخ الشراء أو التأجير]])/365)),0)","v":{"v":0,"d":"0.00 ر.س.‏"}}]
[{"$nulls":12},{"$f":"IFERROR(IF(AND(البيانات[[#This Row],[القيمة الأولية]]>0,البيانات[[#This Row],[القيمة الأولية]]<>البيانات[[#This Row],[الدفعة الأولى]]),-1*PMT(البيانات[[#This Row],[سعر القرض]]/12,البيانات[[#This Row],[مدة القرض بالسنوات]]*12,البيانات[[#This Row],[القيمة الأولية]]-البيانات[[#This Row],[الدفعة الأولى]]),0),0)","v":{"v":0,"d":"0.00 ر.س.‏"}},null,{"$f":"IFERROR(البيانات[[#This Row],[تكاليف التشغيل الشهرية]]+البيانات[[#This Row],[مبلغ السداد الشهري]],\"\")","v":{"v":0,"d":"0.00 ر.س.‏"}},null,{"$f":"IFERROR(IF(البيانات[[#This Row],[القيمة الأولية]]>0,SLN(البيانات[[#This Row],[القيمة الأولية]],البيانات[[#This Row],[القيمة المتوقعة في نهاية مدة القرض]],البيانات[[#This Row],[سنوات الخدمة المتبقية ]]),0),0)","v":{"v":0,"d":"0.00 ر.س.‏"}},{"$f":"IFERROR(البيانات[[#This Row],[الإهلاك السنوي بالقسط الثابت]]/12,0)","v":{"v":0,"d":"0.00 ر.س.‏"}},{"$f":"IFERROR(البيانات[[#This Row],[القيمة الأولية]]-(البيانات[[#This Row],[الإهلاك السنوي بالقسط الثابت]]*((TODAY()-البيانات[[#This Row],[تاريخ الشراء أو التأجير]])/365)),0)","v":{"v":0,"d":"0.00 ر.س.‏"}}]